Workbook

Sheet Cash Flow Statement
B1: Cash Flow Statement
B3: Fiscal year begins: | D3: (Pre) Startup | E3: =UPPER(TEXT(FiscalYearStartDate,"mmm")) -> JAN | F3: =UPPER(TEXT(EOMONTH(FiscalYearStartDate,1),"mmm")) -> FEB | G3: =UPPER(TEXT(EOMONTH(FiscalYearStartDate,2),"mmm")) -> MAR | H3: =UPPER(TEXT(EOMONTH(FiscalYearStartDate,3),"mmm")) -> APR | I3: =UPPER(TEXT(EOMONTH(FiscalYearStartDate,4),"mmm")) -> MAY | J3: =UPPER(TEXT(EOMONTH(FiscalYearStartDate,5),"mmm")) -> JUN | K3: =UPPER(TEXT(EOMONTH(FiscalYearStartDate,6),"mmm")) -> JUL | L3: =UPPER(TEXT(EOMONTH(FiscalYearStartDate,7),"mmm")) -> AUG | M3: =UPPER(TEXT(EOMONTH(FiscalYearStartDate,8),"mmm")) -> SEP | N3: =UPPER(TEXT(EOMONTH(FiscalYearStartDate,9),"mmm")) -> OCT | O3: =UPPER(TEXT(EOMONTH(FiscalYearStartDate,10),"mmm")) -> NOV | P3: =UPPER(TEXT(EOMONTH(FiscalYearStartDate,11),"mmm")) -> DEC | R3: Total
B4: 2012-01-05 | D4: EST | E4: =FiscalYearStartDate -> 2012-01-05 | F4: =EOMONTH(E4,0)+DAY(FiscalYearStartDate) -> 2012-02-05 | G4: =EOMONTH(F4,0)+DAY(FiscalYearStartDate) -> 2012-03-05 | H4: =EOMONTH(G4,0)+DAY(FiscalYearStartDate) -> 2012-04-05 | I4: =EOMONTH(H4,0)+DAY(FiscalYearStartDate) -> 2012-05-05 | J4: =EOMONTH(I4,0)+DAY(FiscalYearStartDate) -> 2012-06-05 | K4: =EOMONTH(J4,0)+DAY(FiscalYearStartDate) -> 2012-07-05 | L4: =EOMONTH(K4,0)+DAY(FiscalYearStartDate) -> 2012-08-05 | M4: =EOMONTH(L4,0)+DAY(FiscalYearStartDate) -> 2012-09-05 | N4: =EOMONTH(M4,0)+DAY(FiscalYearStartDate) -> 2012-10-05 | O4: =EOMONTH(N4,0)+DAY(FiscalYearStartDate) -> 2012-11-05 | P4: =EOMONTH(O4,0)+DAY(FiscalYearStartDate) -> 2012-12-05 | R4: Item EST
B6: Cash on Hand (beginning of month) | D6: 100 | E6: =D48 -> 100 | F6: =E48 -> -125 | G6: 45 | H6: -1 | I6: 224 | J6: 269 | K6: 269 | L6: 269 | M6: 269 | N6: 269 | O6: 269 | P6: 269 | R6: =P6 -> 269
B8: Cash Receipts
B9: Cash Sales | E9: 125 | F9: 120 | G9: 130 | H9: 100 | R9: =SUM(CashReceipts[[#This Row],[Period 0]:[Period 12]]) -> 475
B10: Collections fm CR accounts | H10: 75 | I10: 45 | R10: =SUM(CashReceipts[[#This Row],[Period 0]:[Period 12]]) -> 120
B11: Loan/ other cash inj. | E11: 50 | F11: 50 | G11: 50 | H11: 50 | R11: =SUM(CashReceipts[[#This Row],[Period 0]:[Period 12]]) -> 200
B12: Total | D12: =SUBTOTAL(109,CashReceipts[Period 0]) -> 0 | E12: =SUBTOTAL(109,CashReceipts[Period 1]) -> 175 | F12: =SUBTOTAL(109,CashReceipts[Period 2]) -> 170 | G12: =SUBTOTAL(109,CashReceipts[Period 3]) -> 180 | H12: =SUBTOTAL(109,CashReceipts[Period 4]) -> 225 | I12: =SUBTOTAL(109,CashReceipts[Period 5]) -> 45 | J12: =SUBTOTAL(109,CashReceipts[Period 6]) -> 0 | K12: =SUBTOTAL(109,CashReceipts[Period 7]) -> 0 | L12: =SUBTOTAL(109,CashReceipts[Period 8]) -> 0 | M12: =SUBTOTAL(109,CashReceipts[Period 9]) -> 0 | N12: =SUBTOTAL(109,CashReceipts[Period 10]) -> 0 | O12: =SUBTOTAL(109,CashReceipts[Period 11]) -> 0 | P12: =SUBTOTAL(109,CashReceipts[Period 12]) -> 0 | R12: =SUBTOTAL(109,CashReceipts[Total]) -> 795
B13: Total Cash Available (before cash out) | D13: =D6+SUM(CashReceipts[Period 0]) -> 100 | E13: =E6+SUM(CashReceipts[Period 1]) -> 275 | F13: =F6+SUM(CashReceipts[Period 2]) -> 45 | G13: =G6+SUM(CashReceipts[Period 3]) -> 225 | H13: =H6+SUM(CashReceipts[Period 4]) -> 224 | I13: =I6+SUM(CashReceipts[Period 5]) -> 269 | J13: =J6+SUM(CashReceipts[Period 6]) -> 269 | K13: =K6+SUM(CashReceipts[Period 7]) -> 269 | L13: =L6+SUM(CashReceipts[Period 8]) -> 269 | M13: =M6+SUM(CashReceipts[Period 9]) -> 269 | N13: =N6+SUM(CashReceipts[Period 10]) -> 269 | O13: =O6+SUM(CashReceipts[Period 11]) -> 269 | P13: =P6+SUM(CashReceipts[Period 12]) -> 269 | R13: =R6+SUM(CashReceipts[Total]) -> 1064
B15: Cash Paid Out
B16: Purchases (merchandise) | E16: 400 | G16: 226 | R16: =SUM(CashPaidOut[[#This Row],[Period 0]:[Period 12]]) -> 626
B17: Purchases (specify) | R17: =SUM(CashPaidOut[[#This Row],[Period 0]:[Period 12]]) -> 0
B18: Purchases (specify) | R18: =SUM(CashPaidOut[[#This Row],[Period 0]:[Period 12]]) -> 0
B19: Gross wages (exact withdrawal) | R19: =SUM(CashPaidOut[[#This Row],[Period 0]:[Period 12]]) -> 0
B20: Payroll expenses (taxes, etc.) | R20: =SUM(CashPaidOut[[#This Row],[Period 0]:[Period 12]]) -> 0
B21: Outside services | R21: =SUM(CashPaidOut[[#This Row],[Period 0]:[Period 12]]) -> 0
B22: Supplies (office & oper.) | R22: =SUM(CashPaidOut[[#This Row],[Period 0]:[Period 12]]) -> 0
B23: Repairs & maintenance | R23: =SUM(CashPaidOut[[#This Row],[Period 0]:[Period 12]]) -> 0
B24: Advertising | R24: =SUM(CashPaidOut[[#This Row],[Period 0]:[Period 12]]) -> 0
B25: Car, delivery & travel | R25: =SUM(CashPaidOut[[#This Row],[Period 0]:[Period 12]]) -> 0
B26: Accounting & legal | R26: =SUM(CashPaidOut[[#This Row],[Period 0]:[Period 12]]) -> 0
B27: Rent | R27: =SUM(CashPaidOut[[#This Row],[Period 0]:[Period 12]]) -> 0
B28: Telephone | R28: =SUM(CashPaidOut[[#This Row],[Period 0]:[Period 12]]) -> 0
B29: Utilities | R29: =SUM(CashPaidOut[[#This Row],[Period 0]:[Period 12]]) -> 0
B30: Insurance | R30: =SUM(CashPaidOut[[#This Row],[Period 0]:[Period 12]]) -> 0
B31: Taxes (real estate, etc.) | R31: =SUM(CashPaidOut[[#This Row],[Period 0]:[Period 12]]) -> 0
B32: Interest | R32: =SUM(CashPaidOut[[#This Row],[Period 0]:[Period 12]]) -> 0
B33: Other expenses (specify) | R33: =SUM(CashPaidOut[[#This Row],[Period 0]:[Period 12]]) -> 0
B34: Other (specify) | R34: =SUM(CashPaidOut[[#This Row],[Period 0]:[Period 12]]) -> 0
B35: Other (specify) | R35: =SUM(CashPaidOut[[#This Row],[Period 0]:[Period 12]]) -> 0
B36: Miscellaneous | R36: =SUM(CashPaidOut[[#This Row],[Period 0]:[Period 12]]) -> 0
B37: Total | D37: =SUBTOTAL(109,CashPaidOut[Period 0]) -> 0 | E37: =SUBTOTAL(109,CashPaidOut[Period 1]) -> 400 | F37: =SUBTOTAL(109,CashPaidOut[Period 2]) -> 0 | G37: =SUBTOTAL(109,CashPaidOut[Period 3]) -> 226 | H37: =SUBTOTAL(109,CashPaidOut[Period 4]) -> 0 | I37: =SUBTOTAL(109,CashPaidOut[Period 5]) -> 0 | J37: =SUBTOTAL(109,CashPaidOut[Period 6]) -> 0 | K37: =SUBTOTAL(109,CashPaidOut[Period 7]) -> 0 | L37: =SUBTOTAL(109,CashPaidOut[Period 8]) -> 0 | M37: =SUBTOTAL(109,CashPaidOut[Period 9]) -> 0 | N37: =SUBTOTAL(109,CashPaidOut[Period 10]) -> 0 | O37: =SUBTOTAL(109,CashPaidOut[Period 11]) -> 0 | P37: =SUBTOTAL(109,CashPaidOut[Period 12]) -> 0 | R37: =SUBTOTAL(109,CashPaidOut[Total]) -> 626
B39: Cash Paid Out (Non P&L)
B40: Loan principal payment | R40: =SUM(CashPaidOut2[[#This Row],[Period 0]:[Period 12]]) -> 0
B41: Capital purchase (specify) | R41: =SUM(CashPaidOut2[[#This Row],[Period 0]:[Period 12]]) -> 0
B42: Other startup costs | R42: =SUM(CashPaidOut2[[#This Row],[Period 0]:[Period 12]]) -> 0
B43: Reserve and/or escrow | R43: =SUM(CashPaidOut2[[#This Row],[Period 0]:[Period 12]]) -> 0
B44: Owners' withdrawal | R44: =SUM(CashPaidOut2[[#This Row],[Period 0]:[Period 12]]) -> 0
B45: Total | D45: =SUBTOTAL(109,CashPaidOut2[Period 0]) -> 0 | E45: =SUBTOTAL(109,CashPaidOut2[Period 1]) -> 0 | F45: =SUBTOTAL(109,CashPaidOut2[Period 2]) -> 0 | G45: =SUBTOTAL(109,CashPaidOut2[Period 3]) -> 0 | H45: =SUBTOTAL(109,CashPaidOut2[Period 4]) -> 0 | I45: =SUBTOTAL(109,CashPaidOut2[Period 5]) -> 0 | J45: =SUBTOTAL(109,CashPaidOut2[Period 6]) -> 0 | K45: =SUBTOTAL(109,CashPaidOut2[Period 7]) -> 0 | L45: =SUBTOTAL(109,CashPaidOut2[Period 8]) -> 0 | M45: =SUBTOTAL(109,CashPaidOut2[Period 9]) -> 0 | N45: =SUBTOTAL(109,CashPaidOut2[Period 10]) -> 0 | O45: =SUBTOTAL(109,CashPaidOut2[Period 11]) -> 0 | P45: =SUBTOTAL(109,CashPaidOut2[Period 12]) -> 0 | R45: =SUBTOTAL(109,CashPaidOut2[Total]) -> 0
B46: Total Cash Paid Out | D46: =SUM(CashPaidOut[Period 0],CashPaidOut2[Period 0]) -> 0 | E46: =SUM(CashPaidOut[Period 1],CashPaidOut2[Period 1]) -> 400 | F46: =SUM(CashPaidOut[Period 2],CashPaidOut2[Period 2]) -> 0 | G46: =SUM(CashPaidOut[Period 3],CashPaidOut2[Period 3]) -> 226 | H46: =SUM(CashPaidOut[Period 4],CashPaidOut2[Period 4]) -> 0 | I46: =SUM(CashPaidOut[Period 5],CashPaidOut2[Period 5]) -> 0 | J46: =SUM(CashPaidOut[Period 6],CashPaidOut2[Period 6]) -> 0 | K46: =SUM(CashPaidOut[Period 7],CashPaidOut2[Period 7]) -> 0 | L46: =SUM(CashPaidOut[Period 8],CashPaidOut2[Period 8]) -> 0 | M46: =SUM(CashPaidOut[Period 9],CashPaidOut2[Period 9]) -> 0 | N46: =SUM(CashPaidOut[Period 10],CashPaidOut2[Period 10]) -> 0 | O46: =SUM(CashPaidOut[Period 11],CashPaidOut2[Period 11]) -> 0 | P46: =SUM(CashPaidOut[Period 12],CashPaidOut2[Period 12]) -> 0 | R46: =SUM(CashPaidOut[Total],CashPaidOut2[Total]) -> 626
B48: Cash Position (end of month) | D48: =D13-D46 -> 100 | E48: -125 | F48: 45 | G48: -1 | H48: 224 | I48: 269 | J48: 269 | K48: 269 | L48: 269 | M48: 269 | N48: 269 | O48: 269 | P48: 269 | R48: =R13-R46 -> 438
